bitfinex-derivatives/quotes_BTCF0:USTF0_20251002
["timestamp","ask_amount","ask_price","bid_price","bid_amount"]
[1759410407032,1.8539286,119320.0,119310.0,0.03454]
[1759410407440,1.8559286,119320.0,119310.0,0.03454]
[1759410408032,1.8559286,119320.0,119310.0,0.01288]
[1759410408236,1.8589286,119320.0,119310.0,0.01288]
[1759410408731,1.8539286,119320.0,119310.0,0.01388]
[1759410409437,1.8539286,119320.0,119310.0,0.03676]
[1759410409839,1.8559286,119320.0,119310.0,0.03576]
[1759410410132,0.0837736,119310.0,119300.0,0.03576]
[1759410410332,0.0837736,119310.0,119300.0,0.1195406]
[1759410410333,0.77037225,119310.0,119300.0,0.1195406]
[1759410411829,0.77037225,119310.0,119300.0,0.1205406]
[1759410412131,0.77037165,119320.0,119310.0,0.0837736]
[1759410412337,1.4930903,119320.0,119310.0,0.1195236]
[1759410413133,1.4930903,119320.0,119310.0,0.03575]
[1759410413538,1.8598903,119320.0,119310.0,0.03575]
[1759410413833,1.1021703,119320.0,119310.0,0.03575]
[1759410414030,0.77637165,119320.0,119310.0,0.44532225]
[1759410414230,0.33179865,119320.0,119310.0,0.44532225]
[1759410414440,0.006,119320.0,119310.0,0.44532225]
[1759410414635,0.76372,119320.0,119310.0,0.1195236]
[1759410414841,0.33179865,119320.0,119310.0,0.44532225]
[1759410415140,0.006,119320.0,119310.0,1.20612225]
[1759410415334,0.76368,119320.0,119310.0,1.20612225]
[1759410416039,0.006,119320.0,119310.0,1.20612225]
[1759410416234,0.006,119320.0,119310.0,1.20608483]
[1759410416439,0.76368,119320.0,119310.0,1.20608483]
[1759410416641,0.84699126,119340.0,119330.0,0.1195097]
[1759410416642,0.00871207,119340.0,119330.0,0.1195097]
[1759410416838,0.75768,119340.0,119330.0,0.1195097]
[1759410417344,0.32576123,119340.0,119330.0,0.1195097]
[1759410417542,0.68656123,119350.0,119340.0,0.1195031]
[1759410417736,1.52798733,119350.0,119340.0,0.1195031]
[1759410417940,1.52798733,119350.0,119340.0,0.0966231]
[1759410418545,1.53647325,119350.0,119340.0,0.1195031]
[1759410419344,1.6061499,119350.0,119340.0,0.1195031]
[1759410420137,1.27838867,119350.0,119340.0,0.1195031]
[1759410420337,1.6041499,119350.0,119340.0,0.1195031]
[1759410421045,0.3628,119350.0,119340.0,0.1195031]
[1759410421353,0.7602,119350.0,119340.0,0.8803031]
[1759410423946,0.8439466,119350.0,119340.0,0.8803031]
[1759410424846,0.85249436,119350.0,119340.0,0.8803031]
[1759410426633,0.8439466,119350.0,119340.0,0.8803031]
[1759410429249,0.7602,119350.0,119340.0,0.8803031]
[1759410429647,0.76903513,119350.0,119340.0,0.8803031]
[1759410430247,0.76903513,119350.0,119340.0,1.20606433]
[1759410430550,0.76903513,119350.0,119340.0,0.8803031]
[1759410430752,0.85278153,119350.0,119340.0,0.8803031]
[1759410432349,0.09458153,119350.0,119340.0,0.8803031]
[1759410432655,0.76855513,119350.0,119340.0,0.8803031]
[1759410432857,0.76855513,119350.0,119340.0,0.80606433]
[1759410433045,0.76855513,119350.0,119340.0,0.4803031]
[1759410433647,0.76855513,119350.0,119340.0,0.80606433]
[1759410434045,0.76855513,119350.0,119340.0,0.4803031]
[1759410434742,0.85230153,119350.0,119340.0,0.4803031]
[1759410435151,0.76855513,119350.0,119340.0,0.4803031]
[1759410439255,0.85230073,119350.0,119340.0,0.4803031]
[1759410453078,0.85030073,119350.0,119340.0,0.4803031]
[1759410453269,0.85130073,119350.0,119340.0,0.4803031]
[1759410453970,0.83768639,119350.0,119340.0,0.54009805]
[1759410454171,0.83668639,119350.0,119340.0,0.54109805]
[1759410454371,0.83831759,119360.0,119350.0,0.1180161]
[1759410454571,0.53380972,119360.0,119350.0,0.1180161]
[1759410454762,1.61701095,119360.0,119350.0,0.1180161]
[1759410455574,1.62101095,119360.0,119350.0,0.1180161]
[1759410456079,1.63140612,119360.0,119350.0,0.1180161]
[1759410456279,1.30564489,119360.0,119350.0,0.1180161]
[1759410456477,1.63140612,119360.0,119350.0,0.1180161]
[1759410460079,1.30564489,119360.0,119350.0,0.1180161]
[1759410460281,1.63136612,119360.0,119350.0,0.1180161]
[1759410462280,1.61011276,119360.0,119350.0,0.1180161]
[1759410462479,1.6312868,119360.0,119350.0,0.1180161]
[1759410463579,0.083746,119350.0,119340.0,0.0837484]
[1759410463776,0.39589207,119350.0,119340.0,0.0837484]
[1759410464473,0.39589207,119350.0,119340.0,0.0968884]
[1759410464780,0.39589207,119350.0,119340.0,0.0988884]
[1759410464781,0.75669207,119350.0,119340.0,0.0988884]
[1759410464981,0.75669207,119350.0,119340.0,0.1240184]
[1759410468677,0.43093084,119350.0,119340.0,0.1240184]
[1759410468881,0.75669207,119350.0,119340.0,0.1240184]
[1759410470576,1.51409207,119350.0,119340.0,0.1240184]
[1759410470977,1.18833084,119350.0,119340.0,0.1240184]
[1759410471184,1.51409207,119350.0,119340.0,0.1240184]
[1759410475087,0.75669207,119350.0,119340.0,0.1240184]
[1759410475287,1.51413207,119350.0,119340.0,0.1240184]
[1759410475886,1.51413207,119350.0,119340.0,0.01914]
[1759410476093,1.51413207,119350.0,119340.0,0.006]
[1759410476389,1.53528322,119350.0,119340.0,0.006]
[1759410477287,0.0837533,119340.0,119330.0,0.0966284]
[1759410477492,0.77031453,119340.0,119330.0,0.0966284]
[1759410477795,0.77031453,119340.0,119330.0,0.1179584]
[1759410478192,1.09614016,119340.0,119330.0,0.1179584]
[1759410478698,0.4445533,119340.0,119330.0,0.1179584]
[1759410478993,1.09614016,119340.0,119330.0,0.1249584]
[1759410479291,1.09614016,119340.0,119330.0,0.1299584]
[1759410482194,1.82193359,119340.0,119330.0,0.012]
[1759410482496,1.49614016,119340.0,119330.0,0.012]
[1759410482693,2.25358016,119340.0,119330.0,0.012]
[1759410483591,2.25358016,119340.0,119330.0,0.005]
[1759410483795,0.0837604,119330.0,119320.0,0.1179634]
[1759410483995,0.77035383,119330.0,119320.0,0.1179634]
[1759410484986,0.4445582,119340.0,119330.0,0.1186003]
[1759410485187,1.85358506,119340.0,119330.0,0.1186003]
[1759410485392,1.2019982,119340.0,119330.0,0.1186003]
[1759410485597,1.85358506,119340.0,119330.0,0.1186003]
[1759410486096,1.85358506,119340.0,119330.0,0.1226003]
[1759410486298,1.85358506,119340.0,119330.0,0.03884]
[1759410486602,1.85358506,119340.0,119330.0,0.03484]
[1759410486995,1.85358506,119340.0,119330.0,0.1186004]
[1759410487397,1.09614506,119340.0,119330.0,0.1186004]
[1759410487597,1.85362506,119340.0,119330.0,0.1206004]
[1759410491091,2.57941849,119340.0,119330.0,0.002]
[1759410491297,0.0837745,119310.0,119300.0,0.25327837]
[1759410491606,1.15342928,119310.0,119300.0,0.17841265]
[1759410492897,1.15342928,119310.0,119300.0,0.19041265]
[1759410493301,1.15342928,119310.0,119300.0,0.18841265]
[1759410493795,1.15342928,119310.0,119300.0,0.10463495]
[1759410494006,1.16218833,119310.0,119300.0,0.18841355]
[1759410494304,1.16218833,119310.0,119300.0,0.1286186]
[1759410495895,1.22834934,119310.0,119300.0,0.1286186]
[1759410496101,0.90255591,119310.0,119300.0,0.1286186]
[1759410496300,1.58918934,119310.0,119300.0,0.1286186]
[1759410497908,1.58918934,119310.0,119300.0,0.04484]
[1759410498807,1.58918934,119310.0,119300.0,0.03484]
[1759410499008,1.58918934,119310.0,119300.0,0.04084]
[1759410500103,1.58918934,119310.0,119300.0,0.04784]
[1759410500711,2.31498277,119310.0,119300.0,0.013]
[1759410500900,0.0837805,119300.0,119290.0,0.03462]
[1759410501105,0.73536736,119300.0,119290.0,0.03462]
[1759410501305,0.73536736,119300.0,119290.0,0.01351]
[1759410501608,1.49292736,119300.0,119290.0,0.01351]
[1759410502111,1.49292736,119300.0,119290.0,0.01751]
[1759410502412,1.49292736,119300.0,119290.0,0.01351]
[1759410502608,1.49292736,119300.0,119290.0,0.01951]
[1759410502914,0.73536736,119300.0,119290.0,0.01951]
[1759410503412,1.49292736,119300.0,119290.0,0.01951]
[1759410503615,0.8413405,119300.0,119290.0,0.01951]
[1759410503813,1.85372736,119300.0,119290.0,0.01951]
[1759410504210,1.85372736,119300.0,119290.0,0.006]
[1759410507218,1.85376736,119300.0,119290.0,0.006]
[1759410507915,1.85376736,119300.0,119290.0,0.01985]
[1759410509820,1.85376736,119300.0,119290.0,0.006]
[1759410513330,2.25380736,119300.0,119290.0,0.006]
[1759410514224,1.49616736,119300.0,119290.0,0.006]
[1759410514933,2.25380736,119300.0,119290.0,0.006]
[1759410515633,1.49616736,119300.0,119290.0,0.006]
[1759410515832,2.25380736,119300.0,119290.0,0.006]
[1759410519436,1.85380736,119300.0,119290.0,0.006]
[1759410520436,1.87498074,119300.0,119290.0,0.006]
[1759410521439,0.46575388,119300.0,119290.0,0.006]
[1759410521635,1.87502074,119300.0,119290.0,0.006]
[1759410521835,1.11734074,119300.0,119290.0,0.006]
[1759410522131,1.87502074,119300.0,119290.0,0.006]
[1759410523436,1.11734074,119300.0,119290.0,0.006]
[1759410523634,1.87502074,119300.0,119290.0,0.006]
[1759410526941,1.87502074,119300.0,119290.0,0.04318]
[1759410527743,1.11734074,119300.0,119290.0,0.04318]
[1759410528040,1.87502074,119300.0,119290.0,0.04318]
[1759410528243,1.87502074,119300.0,119290.0,0.006]
[1759410532244,2.20081417,119300.0,119290.0,0.006]
[1759410532750,1.87502074,119300.0,119290.0,0.006]
[1759410534851,1.87507615,119300.0,119290.0,0.006]
[1759410536249,1.11739615,119300.0,119290.0,0.006]
[1759410536446,1.87511615,119300.0,119290.0,0.006]
[1759410540250,1.54959718,119300.0,119290.0,0.006]
[1759410547661,0.0837872,119290.0,119280.0,0.1198935]
[1759410547866,0.79188388,119290.0,119280.0,0.1198935]
[1759410548163,0.77065509,119290.0,119280.0,0.1198935]
[1759410548464,0.79190154,119290.0,119280.0,0.1198935]
[1759410548657,1.54958154,119290.0,119280.0,0.1198935]
[1759410548964,1.54958154,119290.0,119280.0,0.0361]
[1759410549263,1.54958154,119290.0,119280.0,0.0421]
[1759410549564,1.54958154,119290.0,119280.0,0.0361]
[1759410549860,1.54958154,119290.0,119280.0,0.0401]
[1759410550364,1.54958154,119290.0,119280.0,0.0361]
[1759410550561,1.54958154,119290.0,119280.0,0.0371]
[1759410550868,1.54958154,119290.0,119280.0,0.01751]
[1759410551665,1.54958154,119290.0,119280.0,0.0401]
[1759410553070,1.5147125,119290.0,119280.0,0.0401]
[1759410555376,1.53610772,119290.0,119280.0,0.0401]
[1759410556671,1.53610772,119290.0,119280.0,0.01751]
[1759410557369,1.53610772,119290.0,119280.0,0.03963]
[1759410558479,1.53610772,119290.0,119280.0,0.01704]
[1759410558976,1.53610772,119290.0,119280.0,0.04029]
[1759410559573,1.53610772,119290.0,119280.0,0.01704]
[1759410560580,1.53610772,119290.0,119280.0,0.1240844]
[1759410563978,0.77842772,119290.0,119280.0,0.1240844]
[1759410564380,1.53606772,119290.0,119280.0,0.1240844]
[1759410565383,0.77842772,119290.0,119280.0,0.1240844]
[1759410565881,0.46598262,119290.0,119280.0,0.5240844]
[1759410566085,1.22362262,119290.0,119280.0,0.5240844]
[1759410566286,1.54969051,119290.0,119280.0,0.5240844]
[1759410566790,0.79205051,119290.0,119280.0,0.5240844]
[1759410567081,1.54969051,119290.0,119280.0,0.5240844]
[1759410570388,0.79205051,119290.0,119280.0,0.5240844]
[1759410570587,1.54969051,119290.0,119280.0,0.5240844]
[1759410573196,0.79205051,119290.0,119280.0,0.5240844]
[1759410573492,1.54969051,119290.0,119280.0,0.5240844]
[1759410573886,1.52829529,119290.0,119280.0,0.5240844]
[1759410574593,1.16749529,119290.0,119280.0,0.5240844]
[1759410574788,0.8414274,119290.0,119280.0,0.5240844]
[1759410575988,0.8414274,119290.0,119280.0,0.85015229]
[1759410575989,0.0837877,119290.0,119280.0,0.85015229]
[1759410576193,0.8414277,119290.0,119280.0,1.21095229]
[1759410576594,0.77065409,119300.0,119290.0,0.1184077]
[1759410576792,0.79204711,119300.0,119290.0,0.1184077]
[1759410576994,1.54968711,119300.0,119290.0,0.1184077]
[1759410577392,0.79204711,119300.0,119290.0,0.1184077]
[1759410577593,1.54964711,119300.0,119290.0,0.1184077]
[1759410578287,1.55164711,119300.0,119290.0,0.1184077]
[1759410579299,1.22557922,119300.0,119290.0,0.1184077]
[1759410579499,0.02339302,119300.0,119290.0,0.44447559]
[1759410579692,0.7596,119300.0,119290.0,0.50427054]
[1759410580504,0.7596,119300.0,119290.0,0.4792077]
[1759410580693,0.7596,119300.0,119290.0,0.53900265]
[1759410580891,0.7576,119300.0,119290.0,0.53900265]
[1759410581100,0.7576,119300.0,119290.0,0.54200265]
[1759410581288,0.7576,119300.0,119290.0,0.4822077]
[1759410581600,0.7576,119300.0,119290.0,0.4802077]
[1759410582298,0.84556655,119310.0,119300.0,0.1184008]
[1759410582500,1.60316655,119310.0,119300.0,0.1184008]
[1759410583898,1.62446729,119310.0,119300.0,0.1184008]
[1759410584703,1.62646729,119310.0,119300.0,0.1184008]
[1759410586002,1.60516655,119310.0,119300.0,0.1184008]
[1759410586899,1.27909866,119310.0,119300.0,0.1184008]
[1759410587105,1.60516655,119310.0,119300.0,0.1184008]
[1759410589305,1.27909866,119310.0,119300.0,0.1184008]
[1759410589509,1.60516655,119310.0,119300.0,0.1184008]
[1759410590113,0.84756655,119310.0,119300.0,0.1184008]
[1759410590305,1.60508655,119310.0,119300.0,0.1184008]
[1759410590502,0.07692006,119310.0,119300.0,0.84446869]
[1759410590706,0.07692006,119310.0,119300.0,1.20526869]
[1759410590707,0.83440006,119310.0,119300.0,1.20526869]
[1759410590905,0.75948,119310.0,119300.0,1.20526869]
[1759410591107,0.002,119310.0,119300.0,1.20526869]
[1759410591306,0.75948,119310.0,119300.0,1.20526869]
[1759410592008,0.002,119310.0,119300.0,1.20526869]
[1759410592203,0.77063109,119330.0,119320.0,0.0837669]
[1759410592409,1.52811109,119330.0,119320.0,0.1188569]
[1759410593407,1.53111109,119330.0,119320.0,0.1188569]
[1759410593813,0.77463109,119330.0,119320.0,0.1188569]
[1759410594112,1.53211109,119330.0,119320.0,0.1188569]
[1759410594311,0.77463109,119330.0,119320.0,0.1188569]
[1759410594517,1.53211109,119330.0,119320.0,0.1188569]
[1759410595215,1.59790594,119330.0,119320.0,0.1188569]
[1759410596210,1.62622917,119330.0,119320.0,0.1188569]
[1759410599212,1.62614917,119330.0,119320.0,0.1188569]
[1759410599410,1.26534917,119330.0,119320.0,0.1188569]
[1759410600215,1.26511391,119330.0,119320.0,0.1188569]
[1759410600514,0.93928128,119330.0,119320.0,0.1188569]
[1759410600814,0.93924128,119330.0,119320.0,0.1188569]
[1759410601008,1.26507391,119330.0,119320.0,0.1188569]
[1759410601214,0.50771391,119330.0,119320.0,0.1188569]
[1759410601414,1.26507391,119330.0,119320.0,0.1188569]
[1759410602113,0.93924128,119330.0,119320.0,0.1188569]
[1759410602510,1.26507391,119330.0,119320.0,0.44468953]
[1759410602711,1.26507391,119330.0,119320.0,0.1188569]
[1759410603417,0.18188128,119330.0,119320.0,0.44468953]
[1759410603610,0.18188128,119330.0,119320.0,0.03509]
[1759410603611,1.26507391,119330.0,119320.0,0.03509]
[1759410603916,1.26507391,119330.0,119320.0,0.118857]
[1759410604308,1.95170654,119330.0,119310.0,0.0966211]
[1759410604507,0.73543226,119320.0,119310.0,0.1188611]
[1759410604711,0.40959963,119320.0,119310.0,0.1188611]
[1759410605111,0.40959963,119320.0,119310.0,0.44469373]
[1759410605711,0.41059963,119320.0,119310.0,0.44469373]
[1759410606517,0.40959963,119320.0,119310.0,0.44469373]
[1759410607113,0.083767,119320.0,119310.0,0.44469373]
[1759410607314,0.083767,119320.0,119310.0,0.1188611]
[1759410607613,0.41059963,119320.0,119310.0,0.44469373]
[1759410608010,0.41059963,119320.0,119310.0,0.1188611]
[1759410608207,0.41059963,119320.0,119310.0,0.44469373]
[1759410608517,0.084767,119320.0,119310.0,0.44469373]
[1759410608715,0.41059963,119320.0,119310.0,0.44469373]
[1759410609314,0.41059963,119320.0,119310.0,0.1188611]
[1759410609610,0.41059963,119320.0,119310.0,0.44469373]
[1759410610523,0.842047,119320.0,119310.0,0.44469373]
[1759410610712,1.15426159,119320.0,119310.0,0.44469373]
[1759410611021,1.15426159,119320.0,119310.0,0.50448868]
[1759410611721,1.15426159,119320.0,119310.0,0.44469373]
[1759410612525,1.08411263,119320.0,119310.0,0.80549373]
[1759410612819,1.08411263,119320.0,119310.0,0.86528868]
[1759410613821,1.16787953,119320.0,119310.0,0.86528868]
[1759410615419,0.8420469,119320.0,119310.0,0.86528868]
[1759410615720,0.32683263,119320.0,119310.0,0.86528868]
[1759410616023,0.75824,119320.0,119310.0,0.86528868]
[1759410616722,0.001,119320.0,119310.0,0.86528868]
[1759410616916,0.75824,119320.0,119310.0,0.86528868]
[1759410617417,0.001,119320.0,119310.0,0.86528868]
[1759410617721,0.17788318,119330.0,119310.0,0.86528868]
[1759410617722,0.50371071,119330.0,119320.0,0.118857]
[1759410617923,0.97107263,119330.0,119320.0,0.44468963]
[1759410618621,1.35910905,119330.0,119320.0,0.118857]
[1759410618924,1.4271884,119330.0,119320.0,0.118857]
[1759410619222,0.47479642,119330.0,119320.0,0.44468963]
[1759410619427,0.47479642,119330.0,119320.0,0.80548963]
[1759410619428,0.78747642,119330.0,119320.0,0.80548963]
[1759410619728,0.87123642,119330.0,119320.0,0.86528458]
[1759410620023,1.19406905,119330.0,119320.0,0.86528458]
[1759410620219,1.19606905,119330.0,119320.0,0.86528458]
[1759410620630,1.18245219,119330.0,119320.0,0.53945195]
[1759410620822,1.18245219,119330.0,119320.0,0.86528458]
[1759410621627,1.18245219,119330.0,119320.0,0.53945195]
[1759410621830,1.18245219,119330.0,119320.0,0.86528458]
[1759410622629,1.18245219,119330.0,119320.0,0.53945195]
[1759410622826,1.18245219,119330.0,119320.0,0.86528458]
[1759410623236,0.85661956,119330.0,119320.0,0.86528458]
[1759410623534,1.18245219,119330.0,119320.0,0.86528458]
[1759410623833,1.18245219,119330.0,119320.0,0.53945195]
[1759410624032,1.18245219,119330.0,119320.0,0.86528458]
[1759410626929,1.18245219,119330.0,119320.0,0.53945195]
[1759410627130,1.18245219,119330.0,119320.0,0.86528458]
[1759410627429,1.18245219,119330.0,119320.0,0.53945195]
[1759410627729,0.083767,119320.0,119310.0,0.03473]
[1759410627931,1.09623226,119320.0,119310.0,0.01285]
[1759410628131,1.09623226,119320.0,119310.0,0.096624]
[1759410628331,1.09623226,119320.0,119310.0,0.118504]
[1759410628941,1.09723226,119320.0,119310.0,0.118504]
[1759410629630,1.09623226,119320.0,119310.0,0.118504]
[1759410629830,1.09723226,119320.0,119310.0,0.118504]
[1759410630739,1.52855963,119320.0,119310.0,0.44433663]
[1759410631036,0.083774,119310.0,119300.0,0.01324]
[1759410631339,0.40960663,119310.0,119300.0,0.42074758]
[1759410632035,0.77040663,119310.0,119300.0,0.1188958]
[1759410632732,0.083774,119310.0,119300.0,0.44572843]
[1759410632932,0.40960663,119310.0,119300.0,0.44572843]
[1759410633338,0.40960663,119310.0,119300.0,0.44472843]
[1759410636735,0.40960663,119310.0,119300.0,0.1188958]
[1759410636931,0.77040663,119310.0,119300.0,0.01324]
[1759410637134,1.09623926,119310.0,119300.0,0.01324]
[1759410637841,0.77040663,119310.0,119300.0,0.03512]
[1759410638442,0.0837809,119300.0,119290.0,0.118903]
[1759410638636,1.85344616,119300.0,119290.0,0.01324]
[1759410639432,1.85344616,119300.0,119290.0,0.03512]
[1759410640344,1.85344616,119300.0,119290.0,0.03912]
[1759410640646,1.85344616,119300.0,119290.0,0.03512]
[1759410640941,2.25344616,119300.0,119290.0,0.003]
[1759410641146,1.49624616,119300.0,119290.0,0.1220078]
[1759410641341,2.25344616,119300.0,119290.0,0.1220078]
[1759410641546,1.56399425,119300.0,119290.0,0.1220078]
[1759410641744,2.32123425,119300.0,119290.0,0.1220078]
[1759410641948,1.92123425,119300.0,119290.0,0.1220078]
[1759410642142,1.51162072,119300.0,119290.0,0.44784043]
[1759410642544,0.75438072,119300.0,119290.0,0.44784043]
[1759410642748,1.51162072,119300.0,119290.0,0.44784043]
[1759410642946,1.59540152,119300.0,119290.0,0.44784043]
[1759410643146,1.26956889,119300.0,119290.0,0.44784043]
[1759410643346,0.51232889,119300.0,119290.0,0.44784043]
[1759410643548,1.59540152,119300.0,119290.0,0.44784043]
[1759410644343,0.06774809,119300.0,119290.0,0.44784043]
[1759410644548,0.40960973,119310.0,119300.0,0.0971204]
[1759410644841,1.16688973,119310.0,119300.0,0.1190004]
[1759410645046,0.40960603,119310.0,119300.0,0.44483303]
[1759410645247,1.16688603,119310.0,119300.0,0.44483303]
[1759410645439,0.32583263,119310.0,119300.0,0.44483303]
[1759410645644,1.08311263,119310.0,119300.0,0.44483303]
[1759410645840,1.16688623,119310.0,119300.0,0.44483303]
[1759410646044,1.16688623,119310.0,119300.0,0.44583303]
[1759410646239,0.40960623,119310.0,119300.0,0.44483303]
[1759410646546,0.77040463,119320.0,119310.0,0.1189936]
[1759410646748,1.52768463,119320.0,119310.0,0.1189936]
[1759410646947,0.77040463,119320.0,119310.0,0.1189936]
[1759410647148,1.52768463,119320.0,119310.0,0.1189936]
[1759410647751,1.52868463,119320.0,119310.0,0.1189936]
[1759410649347,0.0837739,119310.0,119300.0,0.0837759]
[1759410649553,0.0837809,119300.0,119290.0,0.17900835]
[1759410649855,1.49272616,119300.0,119290.0,0.1192134]
[1759410650750,1.49272616,119300.0,119290.0,0.44504603]
[1759410650751,1.16689353,119300.0,119290.0,0.44504603]
[1759410651354,1.08311263,119300.0,119290.0,0.80984603]
[1759410651553,0.4445784,119310.0,119300.0,0.1198108]
[1759410651857,1.52769103,119310.0,119300.0,0.1198108]
[1759410652653,0.77041103,119310.0,119300.0,0.1198108]
[1759410652846,1.52769103,119310.0,119300.0,0.1198108]
[1759410653047,1.52769103,119310.0,119300.0,0.44664343]
[1759410653250,1.52769103,119310.0,119300.0,0.1208108]
[1759410653856,1.52769103,119310.0,119300.0,0.1198108]
[1759410656157,0.77040613,119310.0,119300.0,0.44564343]
[1759410656460,1.52768613,119310.0,119300.0,0.44564343]
[1759410657053,1.16688613,119310.0,119300.0,0.44564343]
[1759410657666,0.77040373,119320.0,119310.0,0.1198034]
[1759410657866,1.09623636,119320.0,119310.0,0.1198034]
[1759410658164,1.85351636,119320.0,119310.0,0.1198034]
[1759410658463,1.2018511,119320.0,119310.0,0.1198034]
[1759410658762,1.52768373,119320.0,119310.0,0.1198034]
[1759410658960,1.52768373,119320.0,119310.0,0.44563603]
[1759410658961,0.4445711,119320.0,119310.0,0.44563603]
[1759410659262,1.52868373,119320.0,119310.0,0.44563603]
[1759410660265,1.52871599,119320.0,119310.0,0.1198034]
[1759410661258,0.3618,119320.0,119310.0,0.5198034]
[1759410661458,0.75824,119320.0,119310.0,0.84566829]
[1759410662261,0.001,119320.0,119310.0,0.90546324]
[1759410662460,0.75824,119320.0,119310.0,1.26626324]
[1759410662656,0.001,119320.0,119310.0,1.26626324]
[1759410662861,0.75824,119320.0,119310.0,1.26626324]
[1759410665768,0.75824,119320.0,119310.0,1.20646829]
[1759410665968,0.75824,119320.0,119310.0,0.8806034]
[1759410666170,1.15425341,119320.0,119310.0,0.14356835]
[1759410666372,0.0837735,119310.0,119300.0,0.54040055]
[1759410666665,0.40963839,119310.0,119300.0,0.54040055]
[1759410667566,0.77043839,119310.0,119300.0,0.18060055]
[1759410667970,0.77043839,119310.0,119300.0,0.18160055]
[1759410669764,0.77043839,119310.0,119300.0,0.18160575]
[1759410669964,0.77043839,119310.0,119300.0,0.01594]
[1759410670264,0.77043839,119310.0,119300.0,0.0997208]
[1759410670457,0.77043839,119310.0,119300.0,0.1218108]
[1759410671973,0.77043839,119310.0,119300.0,0.03803]
[1759410672566,0.77043839,119310.0,119300.0,0.002]
[1759410672767,1.49630328,119310.0,119300.0,0.002]
[1759410672974,1.17043839,119310.0,119300.0,0.002]
[1759410673573,1.17043839,119310.0,119300.0,0.01594]
[1759410674276,1.17043839,119310.0,119300.0,0.002]
[1759410674978,1.49630328,119310.0,119300.0,0.002]
[1759410678081,2.25374328,119310.0,119300.0,0.002]
[1759410680384,1.49630328,119310.0,119300.0,0.002]
[1759410680683,2.25370328,119310.0,119300.0,0.03668]
[1759410680983,1.49630328,119310.0,119300.0,0.01503]
[1759410681382,2.25374328,119310.0,119300.0,0.01503]
[1759410682587,2.25374328,119310.0,119300.0,0.002]
[1759410683282,1.49630328,119310.0,119300.0,0.03745]
[1759410683584,2.25374328,119310.0,119300.0,0.03745]
[1759410683786,1.49630328,119310.0,119300.0,0.03745]
[1759410683985,2.25370328,119310.0,119300.0,0.03745]
[1759410684187,1.49630328,119310.0,119300.0,0.03745]
[1759410684485,2.25374328,119310.0,119300.0,0.03745]
[1759410684874,0.77043839,119310.0,119300.0,0.0158]
[1759410685075,0.77043839,119310.0,119300.0,0.03699]
[1759410685279,1.52783839,119310.0,119300.0,0.03699]
[1759410685475,1.52783839,119310.0,119300.0,0.0158]
[1759410685682,1.52783839,119310.0,119300.0,0.002]
[1759410686193,1.85370328,119310.0,119300.0,0.002]
[1759410691285,2.25370328,119310.0,119300.0,0.002]
[1759410691590,0.0837879,119290.0,119280.0,0.03453]
[1759410691784,1.52789279,119290.0,119280.0,0.03453]
[1759410692983,1.52789279,119290.0,119280.0,0.04153]
[1759410693184,1.52789279,119290.0,119280.0,0.04953]
[1759410693383,1.52789279,119290.0,119280.0,0.1333249]
[1759410693988,1.52789279,119290.0,119280.0,0.04953]
[1759410695295,1.52789279,119290.0,119280.0,0.03853]
[1759410695995,1.52789279,119290.0,119280.0,0.04153]
[1759410696295,1.59474175,119290.0,119280.0,0.04153]
[1759410698298,1.59474175,119290.0,119280.0,0.02034]
[1759410699593,1.59474175,119290.0,119280.0,0.007]
[1759410701400,1.26887686,119290.0,119280.0,0.0208]
[1759410701697,1.59466175,119290.0,119280.0,0.0208]
[1759410701894,1.61584695,119290.0,119280.0,0.0208]
[1759410703201,1.28998206,119290.0,119280.0,0.0208]
[1759410703403,1.61584695,119290.0,119280.0,0.0208]
[1759410703700,1.28998206,119290.0,119280.0,0.0208]
[1759410703900,1.61584695,119290.0,119280.0,0.007]
[1759410704098,1.59466175,119290.0,119280.0,0.007]
[1759410704700,0.83730175,119290.0,119280.0,0.007]
[1759410704898,1.59470175,119290.0,119280.0,0.007]
[1759410705799,1.61588655,119290.0,119280.0,0.007]
[1759410706707,0.0837949,119280.0,119270.0,0.03513]
[1759410707004,0.77045979,119280.0,119270.0,0.03513]
[1759410707395,0.77045979,119280.0,119260.0,0.0976088]
[1759410707602,1.52786679,119270.0,119260.0,0.1187988]
[1759410708807,1.52786679,119270.0,119260.0,0.1257988]
[1759410709107,1.52786679,119270.0,119260.0,0.04199]
[1759410709709,1.52786679,119270.0,119260.0,0.1187989]
[1759410709910,1.52786679,119270.0,119260.0,0.1257989]
[1759410711009,0.77046679,119270.0,119260.0,0.04199]
[1759410711310,1.52790679,119270.0,119260.0,0.04199]
[1759410711509,0.77046679,119270.0,119260.0,0.1257989]
[1759410711708,1.52790679,119270.0,119260.0,0.1257989]
[1759410711914,0.0838019,119270.0,119260.0,0.45166379]
[1759410712112,0.8412419,119270.0,119260.0,0.85166379]
[1759410712711,0.88387206,119270.0,119260.0,0.85166379]
[1759410713114,0.12643206,119270.0,119260.0,0.85166379]
[1759410713407,0.88387206,119270.0,119260.0,0.85166379]
[1759410714112,0.88387206,119270.0,119260.0,0.85130547]
[1759410715214,0.04263016,119270.0,119260.0,0.85130547]
[1759410715419,0.75744,119270.0,119260.0,0.85130547]
[1759410715618,0.77046439,119280.0,119270.0,0.1198518]
[1759410715820,1.56897926,119280.0,119270.0,0.1198518]
[1759410716423,1.24311437,119280.0,119270.0,0.1198518]
[1759410716719,1.56897926,119280.0,119270.0,0.1198518]
[1759410716909,1.56897926,119280.0,119270.0,0.1238518]
[1759410717110,0.81153926,119280.0,119270.0,0.1238518]
[1759410717821,1.56901926,119280.0,119270.0,0.1238518]
[1759410718222,1.56901926,119280.0,119270.0,0.1198518]
[1759410718418,1.56901926,119280.0,119270.0,0.1238518]
[1759410720425,1.56924741,119280.0,119270.0,0.1238518]
[1759410720925,1.89534045,119280.0,119270.0,0.1238518]
[1759410721626,1.24315437,119280.0,119270.0,0.1238518]
[1759410721826,1.89534045,119280.0,119270.0,0.1238518]
[1759410722026,1.24315437,119280.0,119270.0,0.1238518]
[1759410722227,1.89534045,119280.0,119270.0,0.1238518]
[1759410722527,1.89534045,119280.0,119270.0,0.04005]
[1759410722729,1.89534045,119280.0,119270.0,0.1238518]
[1759410723732,1.24315437,119280.0,119270.0,0.1238518]
[1759410723933,1.89534045,119280.0,119270.0,0.1238518]
[1759410724333,1.13786045,119280.0,119270.0,0.1238518]
[1759410724535,1.89534045,119280.0,119270.0,0.1238518]
[1759410724734,1.13786045,119280.0,119270.0,0.1238518]
[1759410724927,1.89534045,119280.0,119270.0,0.1238518]
[1759410726032,1.24315437,119280.0,119270.0,0.1238518]
[1759410726230,1.56924741,119280.0,119270.0,0.44994484]
[1759410727331,0.81176741,119280.0,119270.0,0.44994484]
[1759410727536,1.56924741,119280.0,119270.0,0.1238518]